Cogmind - Beta 14 --- EXPLORER MODE // 2024.08.25 @ 15:35:50 Player: Cwaftwer Result: Destroyed 0b10! Performance ------------- Evolutions (9) 4500 Regions Visited (19) 3800 Robots Destroyed (332) 1660 Value Destroyed (16568) 16568 Prototype IDs (27) 540 Alien Tech Used (9) 1800 Bonus (17212) 17212 TOTAL SCORE: 46080 Bonus ------- High Alert Combat Kills 1853 Follower Combat Kills 747 Entered DSFs 1000 Met Data Miner 300 Used Core Reset Matrix 3000 Scanned by Researcher 500 Met Sigix 2000 Escaped with Sigix 5000 Win 3000 Friendly Fire -188 Cogmind --------- Core Integrity 408/1600 Matter 600/600 Energy 1046/1070 System Corruption 5% Temperature Cool (-184) Movement Treading (158) Location Tau Ceti IV Orbit Parts ------- > --- POWER (4) -------- Particle Reactor Particle Reactor Particle Reactor Micro Antimatter Reactor > --- PROPULSION (6) --- Armored Heavy Treads Advanced Heavy Treads Advanced Heavy Siege Treads > --- UTILITY (10) ----- Advanced Cryofiber Web Advanced Heat Sink Huge Storage Unit Compact Battery Improved Matter Compressor (fused) Improved Propulsion Shielding Layered Medium Armor Plating Point Defense Array > --- WEAPON (6) ------- (None) > --- INVENTORY (25) --- Medium Treads Armored Medium Treads Armored Medium Treads Biometal Medium Treads Huge Storage Unit High-powered Transdimensional Reconstructor Long-range Missile Launcher Long-range Missile Launcher Point Singularity Launcher Advanced Remote Datajack Core Stripper Sigix Containment Pod Peak State ------------ > --- POWER ------------ Particle Reactor Particle Reactor Light Quantum Reactor > --- PROPULSION ------- Armored Medium Treads Advanced Medium Treads Improved Heavy Treads Advanced Heavy Siege Treads > --- UTILITY ---------- Advanced Cryofiber Web Advanced Heat Sink Huge Storage Unit Compact Battery Improved Matter Compressor Improved Heavy Armor Plating Layered Medium Armor Plating Phase Redirector High-powered Tractor Beam > --- WEAPON ----------- Core Cannon Sigix Terminator Sigix Broadsword > --- INVENTORY -------- Particle Reactor Medium Treads Armored Medium Treads Armored Medium Treads Huge Storage Unit Dimensional Node Initializer High-powered Transdimensional Reconstructor High-powered Transdimensional Reconstructor Enhanced Nova Cannon Hypervelocity Mass Driver Long-range Missile Launcher Long-range Missile Launcher Point Singularity Launcher Advanced Remote Datajack Improved Plasma Cutter Core Stripper Sigix Containment Pod [Rating: 225] Favorites ----------- Power Improved Deuterium Engine Engine Improved Deuterium Engine Power Core Micro Fission Core Reactor Particle Reactor Propulsion Light Treads Treads Light Treads Utility Improved Heat Sink Device Improved Heat Sink Storage High-capacity Storage Unit Processor Core Analyzer Hackware Hacking Suite Protection Core Shielding Artifact Phase Redirector Weapon Improved KE Penetrator Energy Gun Medium Laser Energy Cannon Advanced Beam Cannon Ballistic Gun Improved KE Penetrator Ballistic Cannon Magnetic Acceleration Cannon Launcher Point Singularity Launcher Special Weapon Improved Plasma Cutter Impact Weapon Great Maul Slashing Weapon Sigix Broadsword Special Melee Weapon Improved Datajack Build | -11 -10 -9 -9 -8 -7 -7 -6 -6 -6 -6 -5 -5 -4 -4 -3 -2 -2 -1 -1 ------- Run | Yrd Mat Mat Min Mat Fac DSF Fac Low Low Dat Pro Fac Fac DSF Res Res Qua Acc Com Slots Evolved 19 | . 1 2 . 2 2 . 2 . . . . 2 2 . 2 2 . 2 . Power 3 | . . . . 1 . . . . . . . . . . 1 . . 1 . Propulsion 4 | . 1 . . 1 . . . . . . . . 2 . . . . . . Utility 8 | . . 2 . . 1 . 2 . . . . 1 . . 1 1 . . . Weapon 4 | . . . . . 1 . . . . . . 1 . . . 1 . 1 . Parts Attached 182 | 7 3 4 2 18 5 1 13 9 8 2 2 29 4 3 8 24 25 9 6 Power 24 | 1 . . . 4 2 . . . . . . 3 . . 2 4 6 1 1 Engine 11 | 1 . . . 4 2 . . . . . . 3 . . 1 . . . . Core 3 | . . . . . . . . . . . . . . . 1 1 1 . . Reactor 10 | . . . . . . . . . . . . . . . . 3 5 1 1 Propulsion 36 | 2 1 . . 5 . . 1 4 1 . . 4 4 2 . 5 3 1 3 Treads 36 | 2 1 . . 5 . . 1 4 1 . . 4 4 2 . 5 3 1 3 Leg . | . . . . . . . . . . . . . . . . . . . . Wheel . | . . . . . . . . . . . . . . . . . . . . Hover . | . . . . . . . . . . . . . . . . . . . . Flight . | . . . . . . . . . . . . . . . . . . . . Utility 57 | 2 1 2 . 1 1 . 6 2 1 . 2 12 . . 4 8 10 3 2 Device 25 | . . 1 . 1 . . 1 . . . 1 6 . . 2 5 5 2 1 Storage 5 | 1 1 . . . . . . . . . . . . . . 2 1 . . Processor 1 | . . . . . . . . . . . 1 . . . . . . . . Hackware 7 | . . . . . 1 . 2 . . . . 4 . . . . . . . Protection 18 | 1 . 1 . . . . 3 2 1 . . 2 . . 2 1 3 1 1 Artifact 1 | . . . . . . . . . . . . . . . . . 1 . . Weapon 65 | 2 1 2 2 8 2 1 6 3 6 2 . 10 . 1 2 7 6 4 . Energy Gun 3 | . . . . 1 . . 1 . . . . 1 . . . . . . . Energy Cannon 12 | . 1 . 2 3 . . . . . . . . . . 1 2 2 1 . Ballistic Gun 17 | 2 . . . 2 2 1 1 1 1 . . 3 . . . 2 2 . . Ballistic Cannon 13 | . . . . . . . 1 1 2 1 . 4 . 1 1 . 1 1 . Launcher 14 | . . 2 . 1 . . 3 . 3 . . 1 . . . 3 1 . . Special Weapon 2 | . . . . . . . . . . . . 1 . . . . . 1 . Impact Weapon 2 | . . . . 1 . . . . . 1 . . . . . . . . . Slashing Weapon 1 | . . . . . . . . . . . . . . . . . . 1 . Piercing Weapon . | . . . . . . . . . . . . . . . . . . . . Special Melee Weapon 1 | . . . . . . . . 1 . . . . . . . . . . . Unidentified Prototypes 7 | . . . . 1 . . . . . . . . . . . 1 5 . . Parts Lost 51 | . . . 4 . . . 2 5 2 . 3 5 . . 2 12 5 7 4 Power 6 | . . . . . . . . . . . . 2 . . 1 1 1 1 . Propulsion 13 | . . . 3 . . . 2 2 1 . 1 . . . . 2 1 1 . Utility 18 | . . . 1 . . . . 2 . . 1 1 . . . 6 3 2 2 Weapon 14 | . . . . . . . . 1 1 . 1 2 . . 1 3 . 3 2 Highest Loss Streak 6 | . . . 3 . . . 1 5 1 . 1 2 . . 1 6 2 4 4 To Critical Strikes 4 | . . . . . . . . . 1 . . . . . 1 . 1 . 1 Average Slot Usage (%) 85 | . 96 99 71 67 100 100 96 93 92 93 84 92 86 87 85 78 87 73 69 Engine 7 | . 12 10 10 9 14 14 12 7 6 6 6 10 10 10 6 4 . . . Reactor 2 | . . . . . . . . . . . . . . . . 6 10 14 14 Treads 17 | . 33 30 2 9 28 28 24 24 24 25 18 16 16 17 18 13 17 11 10 Device 9 | . . 10 9 6 7 7 5 6 6 6 6 13 15 15 18 12 11 13 18 Storage 7 | . 12 10 10 8 7 7 6 6 6 6 6 5 5 5 4 6 8 11 11 Processor 1 | . . . . . . . . . . . . 5 5 5 4 4 3 . . Hackware 7 | . . . . . 7 7 14 13 12 12 12 11 10 10 9 8 5 . . Protection 10 | . 12 19 20 16 14 14 13 16 17 18 14 6 5 5 4 3 7 4 4 Energy Cannon 3 | . 3 1 18 12 . . . . . . . . . . . 3 4 6 6 Ballistic Gun 7 | . 20 1 . 1 14 14 6 10 7 6 6 10 10 10 6 4 8 . . Ballistic Cannon 5 | . . . . . . . 4 5 7 9 11 10 10 10 8 5 1 2 . Launcher 1 | . . 18 1 . . . . . 3 . . . . . . . 2 . . Peak Build Rating 225 | 7 9 16 17 25 34 36 44 44 48 48 48 91 106 109 121 149 208 225 176 Average Rating 76 | 5 8 14 13 16 31 34 41 42 45 47 43 84 104 106 116 134 163 206 171 On Entrance 64 | . 7 9 16 11 25 34 36 43 44 48 48 42 91 106 109 121 139 208 149 Naked Turns . | . . . . . . . . . . . . . . . . . . . . Heaviest Build 240 | 19 51 53 56 67 71 73 83 90 85 85 85 98 98 100 127 196 220 240 187 Greatest Support 220 | 40 60 60 60 82 82 82 82 88 88 88 88 127 215 215 199 220 212 215 220 Greatest Overweight (x) 18 | . . . 18 18 . . 1 1 1 . 1 1 . . . 1 1 1 1 Average Overweight (x) . | . . . 16 5 . . . . . . . . . . . . . . . Largest Inventory Capacity 25 | 10 20 20 20 20 20 20 20 20 20 20 20 20 20 20 20 25 25 25 25 Average Capacity 20 | 7 15 20 20 20 20 20 20 20 20 20 20 20 20 20 20 20 25 25 25 Most Carried 25 | 2 9 14 14 20 20 20 19 19 20 20 20 20 20 20 19 22 25 21 16 Average Carried 17 | 1 6 10 14 15 18 19 17 18 19 20 19 18 19 19 17 15 21 15 13 Final Capacity 25 | 10 20 20 20 20 20 20 20 20 20 20 20 20 20 20 20 25 25 25 25 Final Carried 22 | 2 9 14 14 20 20 20 18 19 20 20 20 19 20 20 17 22 20 13 14 Class Distribution -------------------- 45% | Hacker-Tank 22% | Hacker-Mutant 11% | Hacker-Gunner 9% | Scavenger-Tank 4% | Generator-Tank 3% | Scavenger-Mutant Dominant Class ---------------- Hacker-Mutant | -10/Materials Hacker-Mutant | -9/Materials Hacker-Mutant | -9/Mines Hacker-Mutant | -8/Materials Hacker-Tank | -7/Factory Hacker-Tank | -7/DSF Hacker-Tank | -6/Factory Scavenger-Tank | -6/Lower Caves Hacker-Tank | -6/Lower Caves Hacker-Tank | -6/Data Miner Hacker-Tank | -5/Proximity Caves Hacker-Tank | -5/Factory Hacker-Tank | -4/Factory Hacker-Tank | -4/DSF Hacker-Tank | -3/Research Hacker-Tank | -2/Research Hacker-Tank | -2/Quarantine Generator-Tank | -1/Access Generator-Tank | -1/Command Resources | -11 -10 -9 -9 -8 -7 -7 -6 -6 -6 -6 -5 -5 -4 -4 -3 -2 -2 -1 -1 ----------- Run | Yrd Mat Mat Min Mat Fac DSF Fac Low Low Dat Pro Fac Fac DSF Res Res Qua Acc Com Matter Collected 9805 | 233 128 285 85 273 . 165 407 386 304 . 375 2349 49 724 576 1508 1593 286 79 Remotely 1390 | . . . . . . . . . . . . . . . . 60 965 286 79 Salvage Created 14832 | . 340 460 162 1383 . 374 679 712 79 . 167 2668 . 669 536 2739 2415 1244 205 Parts 707 | . 27 49 10 62 . 20 30 16 1 . 9 155 . 23 15 117 110 55 8 Haulers Intercepted 9 | . 1 1 . 3 . . . . . . . 2 . . . . . 2 . Recyclers Shooed 14 | . . . . 1 . . 2 . . . . 1 . . 3 6 1 . . Parts Field Recycled 22 | . . . . . . . . . . . . . . . . 22 . . . Retrieved Matter 284 | . . . . . . . . . . . . . . . . 284 . . . Parts Self-Destructed . | . . . . . . . . . . . . . . . . . . . . Prevented . | . . . . . . . . . . . . . . . . . . . . Kills | -11 -10 -9 -9 -8 -7 -7 -6 -6 -6 -6 -5 -5 -4 -4 -3 -2 -2 -1 -1 ------- Run | Yrd Mat Mat Min Mat Fac DSF Fac Low Low Dat Pro Fac Fac DSF Res Res Qua Acc Com Combat Hostiles Destroyed 250 | . 5 13 17 20 . 6 7 10 3 . 8 46 . 8 8 38 31 27 3 Melee 2 | . . . . . . . . . . . . . . . . . . 1 1 Guns 78 | . 4 . . 7 . 6 4 5 . . 4 18 . 5 2 11 12 . . Cannons 129 | . 1 . 3 13 . . 2 5 1 . 4 28 . 3 6 26 14 21 2 AOE 39 | . . 13 14 . . . 1 . 2 . . . . . . . 4 5 . Classes Destroyed 25 | . 6 5 2 2 . 1 3 . . . . . . 1 . . 3 2 . Worker 23 | . 1 1 . . . . 4 . . . . 7 . . . 1 4 5 . Builder 17 | . . 2 . . . . 4 . . . . 4 . . 1 1 4 1 . Tunneler 2 | . . 1 1 . . . . . . . . . . . . . . . . Hauler 9 | . 1 1 . 3 . . . . . . . 2 . . . . . 2 . Recycler 14 | . 1 1 . 3 . . 2 . . . . 1 . . 1 5 . . . Carrier 1 | . . . . . . . . . . . . . . . . . . 1 . Mechanic 2 | . . . . . . . 1 . . . . . . . . . 1 . . Operator 5 | . . 1 . 1 . . . . . . . 2 . . . . 1 . . Watcher 18 | . 2 3 . 3 . . . . . . . 4 . . . 2 3 1 . Swarmer 31 | . 2 2 . 3 . . . 2 . . 4 5 . . 2 7 . 4 . Grunt 73 | . 3 9 1 10 . 3 3 4 . . . 15 . 2 . 3 11 6 3 Brawler 10 | . . 1 . 2 . . . 2 1 . . 3 . . . . 1 . . Duelist 4 | . . 1 . . . 1 . 1 . . . . . . . 1 . . . Protector 1 | . . . . . . . . . . . . . . . . . 1 . . Researcher 4 | . . . . . . . . . . . . . . . . . 4 . . Sentry 20 | . . . . 3 . . 2 1 . . . 4 . 1 1 7 . 1 . Demolisher 2 | . . . 2 . . . . . . . . . . . . . . . . Specialist 4 | . . . . . . 2 . . . . . . . 2 . . . . . Hunter 39 | . . . . 2 . . . . 2 . 3 4 . 2 4 6 10 6 . Programmer 41 | . . . . . . . 1 . . . 1 14 . . . 13 4 8 . Heavy 1 | . . . . . . . . . . . . . . 1 . . . . . Q-Series 2 | . . . . . . . . . . . . . . . . . . 2 . Behemoth 5 | . . . . . . . 1 . 1 . . 1 . . 1 1 . . . Lightning 3 | . . . . . . . . . . . . . . . . . 3 . . Alpha 7 1 | . . . . . . . . . . . . . . . . . 1 . . Assembled 14 | . . . 14 . . . . . . . . . . . . . . . . Best Kill Streak 17 | . 4 7 17 3 . 4 4 7 2 . 4 8 . 6 4 7 15 12 2 Combat Bots Only 16 | . 2 5 16 3 . 4 2 7 2 . 4 5 . 6 3 7 7 8 2 Max Kills in Single Turn 8 | . 1 3 8 1 . 1 2 1 2 . 1 3 . 1 2 2 2 8 1 Gunslinging . | . . . . . . . . . . . . . . . . . . . . Exploded 8 | . . 2 8 . . . 1 . 1 . . . . . . . 1 4 . Melee 1 | . . . . . . . . . . . . . . . . . . 1 1 Uniques/NPCs Destroyed . | . . . . . . . . . . . . . . . . . . . . Combat | -11 -10 -9 -9 -8 -7 -7 -6 -6 -6 -6 -5 -5 -4 -4 -3 -2 -2 -1 -1 -------- Run | Yrd Mat Mat Min Mat Fac DSF Fac Low Low Dat Pro Fac Fac DSF Res Res Qua Acc Com Hostile Shots Fired 2010 | . 16 17 20 114 . 46 101 68 39 . 78 207 . 165 144 468 235 240 52 Missed 620 | . 4 8 1 37 . 15 43 18 15 . 25 55 . 80 61 123 56 63 16 Damage Taken 15866 | . 95 265 413 670 . 469 396 605 404 . 552 1942 41 472 579 3640 2291 2532 500 Core 1255 | . 23 14 40 131 . 37 62 67 37 . 57 116 . 15 44 132 117 319 44 Absorbed by Shields 1525 | . . . . . . . . . . . . . . . 77 1448 . . . Reduced by Siege Mode 237 | . . . . . . . . . . . . 54 . . . 153 30 . . Redirected to Core 243 | . . . . . . . . . . . . . . . . . . 243 . Redirected to Shielding 369 | . 4 28 9 32 . 15 10 . 9 . 10 74 . . . . 79 . 99 Ignored by Resistances 11950 | . 60 161 239 415 . 273 251 365 237 . 325 1406 23 665 738 3093 1923 1486 290 Regen/Repaired (Parts) 240 | . . . . . . . 38 . . . . 168 . . . . . 34 . Core Remaining (%) 79 | 100 90 . 86 76 . 94 . . . . 73 88 . 98 96 . 53 . 25 Volleys Fired 670 | . 24 16 9 76 . 15 69 36 7 . 23 94 . 21 25 125 81 44 5 Largest 5 | . 2 2 2 2 . 3 3 3 3 . 3 4 . 4 4 4 5 3 1 Hottest 521 | . 80 60 136 136 . 103 124 124 110 . 127 356 . 167 241 278 521 486 300 Shots Fired 1705 | . 48 28 17 150 . 45 123 84 21 . 69 346 . 82 95 270 262 60 5 Gun 845 | . 31 . . 62 . 45 101 58 3 . 23 168 . 42 41 129 142 . . Cannon 797 | . 17 . 10 88 . . 16 26 3 . 46 178 . 40 54 141 114 59 5 Launcher 63 | . . 28 7 . . . 6 . 15 . . . . . . . 6 1 . Special . | . . . . . . . . . . . . . . . . . . . . Kinetic 1212 | . 31 . . 31 . 30 51 66 6 . 69 343 . 82 89 220 180 14 . Thermal 431 | . 17 . 10 119 . 15 66 18 . . . 3 . . 6 50 76 46 5 Explosive 62 | . . 28 7 . . . 6 . 15 . . . . . . . 6 . . Electromagnetic . | . . . . . . . . . . . . . . . . . . . . Robot Hit Streak 66 | . 17 14 10 51 . 43 66 38 17 . 23 55 . 22 26 40 39 28 9 Robot Miss Streak 3 | . 1 1 . 1 . . 1 1 2 . 1 2 . 1 2 2 3 2 . Penetration Max 2 | . . . . . . . . . . . . 1 . 1 1 2 2 2 . Secondary Targets 6 | . . . . 2 . 2 . . . . . . . 1 . 1 . . . Max Gunslinging Chain 1 | . . . . 1 . 1 . . . . . . . 1 . 1 . . . Shots Hit Robots 1312 | . 30 13 10 130 . 42 112 77 15 . 49 256 . 64 73 220 171 48 2 Core Hits 650 | . 16 35 31 54 . 17 41 33 12 . 15 118 . 25 31 96 95 28 3 Critical Kills 41 | . . . . . . . . . . . . 4 . 3 2 4 11 15 2 Critical Parts Destroyed 47 | . . . . 1 . . . . . . . 4 . 3 . 1 7 31 . Critical Strikes 148 | . . . . 2 . 2 10 2 . . 1 26 . 6 6 21 22 48 2 Burn 13 | . . . . 1 . 2 8 2 . . . . . . . . . . . Meltdown 4 | . . . . . . . . . . . . . . . . 1 2 1 . Destroy 92 | . . . . 1 . . . . . . . 8 . 6 2 6 20 47 2 Blast 39 | . . . . . . . 2 . . . 1 18 . . 4 14 . . . Melee Attacks 9 | . . . . 2 . . . 4 . . . . . . . . . 3 . Impact 2 | . . . . 2 . . . . . . . . . . . . . . . Slashing 3 | . . . . . . . . . . . . . . . . . . 3 . Piercing . | . . . . . . . . . . . . . . . . . . . . Sneak Attacks 4 | . . . . . . . . 4 . . . . . . . . . . . Combat Hostiles . | . . . . . . . . . . . . . . . . . . . . Follow-up Attacks . | . . . . . . . . . . . . . . . . . . . . Damage Inflicted 56220 | . 418 1515 1037 2269 . 655 1942 1425 820 . 902 7555 . 1537 2213 8541 9074 15860 457 Guns 15243 | . 205 . . 734 . 655 1290 911 45 . 313 3836 . 820 866 2970 2598 . . Cannons 27788 | . 213 . 182 1498 . . 293 514 59 . 589 3719 . 717 1347 5571 4010 8676 400 Explosions 12953 | . . 1515 855 . . . 359 . 716 . . . . . . . 2466 7042 . Melee 179 | . . . . 37 . . . . . . . . . . . . . 142 . Ramming 57 | . . . . . . . . . . . . . . . . . . . 57 Kinetic 25030 | . 205 . . 363 . 464 841 1201 104 . 902 7438 . 1537 2019 6832 2913 211 . Thermal 24828 | . 213 146 182 1869 . 191 742 224 . . . 117 . . 194 1709 3776 15065 400 Explosive 5990 | . . 1369 855 . . . 359 . 716 . . . . . . . 2249 442 . Electromagnetic 136 | . . . . . . . . . . . . . . . . . 136 . . Impact 37 | . . . . 37 . . . . . . . . . . . . . . . Slashing 142 | . . . . . . . . . . . . . . . . . . 142 . Piercing . | . . . . . . . . . . . . . . . . . . . . Highest Corruption 9 | . . 1 1 . . . 1 1 1 1 2 5 . . . 9 9 4 5 Average Corruption 2 | . . 1 1 . . . 1 1 1 1 1 2 . . . 5 6 3 4 Corruption Purged 14 | . . . . . . . . . . . . 5 . . . . 9 . . Corruption Blocked . | . . . . . . . . . . . . . . . . . . . . Effects 146 | . . 1 1 . . . . 10 8 1 7 39 . . . 25 34 10 10 Message Errors 41 | . . . . . . . . 1 4 1 5 14 . . . 6 5 3 2 Matter Fused 34 | . . . 1 . . . . 6 1 . 2 6 . . . 5 7 3 3 Heat Flow Errors 16 | . . . . . . . . 1 . . . 5 . . . 3 2 1 4 Energy Discharges 13 | . . . . . . . . 1 1 . . 4 . . . 1 5 . 1 Parts Rejected 3 | . . . . . . . . . . . . . . . . 2 1 . . Parts Fused 2 | . . . . . . . . . . . . 1 . . . . . 1 . Data Loss (minor) 20 | . . . . . . . . 1 1 . . 6 . . . 4 6 2 . Data Loss (major) 6 | . . 1 . . . . . . 1 . . 1 . . . 2 1 . . Misfires 5 | . . . . . . . . . . . . 1 . . . 1 3 . . Weapon Failures 6 | . . . . . . . . . . . . 1 . . . 1 4 . . Overload Shots 2 | . . . . . . . . . . . . 2 . . . . . . . Overflow Damage 4765 | . 2 32 31 9 . . 35 . . . 21 26 . 20 31 358 692 3508 . Projectiles 3527 | . 2 . . 9 . . 19 . . . 21 26 . 20 31 358 357 2684 . Explosions 1238 | . . 32 31 . . . 16 . . . . . . . . . 335 824 . Melee . | . . . . . . . . . . . . . . . . . . . . Knockbacks 76 | . . . . 1 . . 2 4 . . 5 26 . 1 10 24 2 1 . Impact 1 | . . . . 1 . . . . . . . . . . . . . . . Kinetic 72 | . . . . . . . 2 4 . . 5 26 . 1 9 22 2 1 . Secondary 3 | . . . . . . . . . . . . . . . 1 2 . . . Self-Inflicted Damage 321 | . . 199 26 . . . . . 46 . . . . . . . . 50 . Shots 16 | . . 11 1 . . . . . 3 . . . . . . . . 1 . Rammed 1 | . . . . . . . . . . . . . . . . . . . 1 Targets Rammed 1 | . . . . . . . . . . . . . . . . . . . 1 Kicked . | . . . . . . . . . . . . . . . . . . . . Crushed . | . . . . . . . . . . . . . . . . . . . . Highest Temperature 596 | . 84 . 96 330 . . 143 278 19 . 48 249 . . 150 552 391 596 110 Average Temperature 91 | . 25 . 47 63 . . 49 142 12 . 28 35 . . 27 134 68 202 62 Received Heat Transfer 3420 | . 72 60 12 450 . 99 243 294 72 . . 738 . 54 36 809 297 108 76 Effects 15 | . . . . . . . . 2 . . . . . . . 12 . 1 . Shutdowns 5 | . . . . . . . . . . . . . . . . 5 . . . Energy Bleed 3 | . . . . . . . . 2 . . . . . . . 1 . . . Interference 2 | . . . . . . . . . . . . . . . . 2 . . . Short Circuit 1 | . . . . . . . . . . . . . . . . 1 . . . Damage (major) 4 | . . . . . . . . . . . . . . . . 3 . 1 . Siege Activations 7 | . . . . . . . . . . . . 2 . . . 4 1 . . Total Turns 136 | . . . . . . . . . . . . 45 . . . 70 21 . . Longest Duration 35 | . . . . . . . . . . . . 35 . . . 31 21 . . Robots Corrupted 1 | . . . . . . . . . . . . . . . . 1 . . . Combat Hostiles . | . . . . . . . . . . . . . . . . . . . . Parts Fried 5 | . . . . . . . . . . . . . . . . 2 3 . . Impact Corruptions 1 | . . . . . . . . . . . . . . . . 1 . . . Robots Melted 4 | . . . . . . . . . . . . . . . . 1 2 1 . Combat Hostiles 2 | . . . . . . . . . . . . . . . . 1 1 . . Parts Melted 20 | . . . . 10 . . 5 . . . . . . . . 3 1 1 . Heat Transferred 12919 | . 444 100 333 3885 . 703 2775 814 . . . 137 . . 300 1480 1689 259 . Parts Sabotaged 1 | . . . . . . . . . . . . . . . . . . 1 . Parts Stolen . | . . . . . . . . . . . . . . . . . . . . Parts Stripped . | . . . . . . . . . . . . . . . . . . . . Power Chain Reactions 3 | . . . . . . . . . . . . . . . . . 3 . . Alert | -11 -10 -9 -9 -8 -7 -7 -6 -6 -6 -6 -5 -5 -4 -4 -3 -2 -2 -1 -1 ------- Run | Yrd Mat Mat Min Mat Fac DSF Fac Low Low Dat Pro Fac Fac DSF Res Res Qua Acc Com Peak Influence 1668 | . 133 627 228 192 28 198 284 . . . . 658 109 253 212 562 472 1668 1027 Initial 802 | . . 40 172 62 28 14 76 . . . . 52 109 58 106 53 110 160 802 Average 230 | . 45 325 216 62 28 82 146 . . . . 143 109 163 120 343 272 1117 891 Maximum Alert Level 5 | . . 2 1 . . . 1 . . . . 2 . 1 1 2 2 5 3 Low Security (%) 63 | 100 100 41 8 100 100 100 61 . . . . 74 100 48 96 18 31 12 . Level 1 20 | . . 13 91 . . . 38 . . . . 21 . 51 3 38 53 . . Level 2 8 | . . 44 . . . . . . . . . 4 . . . 42 14 . . Level 3 3 | . . . . . . . . . . . . . . . . . . 20 100 Level 4 2 | . . . . . . . . . . . . . . . . . . 52 . Level 5 . | . . . . . . . . . . . . . . . . . . 14 . High Security . | . . . . . . . . . . . . . . . . . . . . Max Security . | . . . . . . . . . . . . . . . . . . . . Sterilizations 1 | . . . . . . . . . . . . . . 1 . . . . . Squads Dispatched 48 | . . 2 . 1 . 1 4 . . . . 13 . 2 2 8 7 6 2 Investigation 5 | . . . . 1 . . . . . . . 2 . . . . 1 . 1 Extermination 15 | . . . . . . . 1 . . . . 5 . . 1 4 2 2 . Reinforcement 21 | . . 2 . . . 1 2 . . . . 6 . 2 1 . 4 2 1 Assault 3 | . . . . . . . . . . . . . . . . 1 . 2 . Garrison 4 | . . . . . . . 1 . . . . . . . . 3 . . . Intercept . | . . . . . . . . . . . . . . . . . . . . Searches Triggered . | . . . . . . . . . . . . . . . . . . . . Data Miner Redirects 2 | . . . . . . . . . . . . . . . . . . 1 1 Construction Impeded 3 | . . . . . . . . . . . . 1 . . . . 1 1 . Haulers Reinforced 2 | . . . . . . . . . . . . 1 . . . . 1 . . Active Scanning Responses . | . . . . . . . . . . . . . . . . . . . . Cargo Convoy Interrupts 1 | . . . . . . . . . . . . 1 . . . . . . . Stealth | -11 -10 -9 -9 -8 -7 -7 -6 -6 -6 -6 -5 -5 -4 -4 -3 -2 -2 -1 -1 --------- Run | Yrd Mat Mat Min Mat Fac DSF Fac Low Low Dat Pro Fac Fac DSF Res Res Qua Acc Com Distress Signals 21 | . . 3 . 3 . . 1 . . . . 4 . . 1 5 3 . 1 Communications Jammed . | . . . . . . . . . . . . . . . . . . . . Distress Signals . | . . . . . . . . . . . . . . . . . . . . Times Spotted 383 | . 10 20 19 30 . 6 13 12 3 . 9 71 . 8 9 52 48 50 23 Peak Tracking Total 20 | . 3 3 20 4 . 2 4 7 2 . 4 6 . 2 4 6 6 5 10 Tactical Retreats 12 | . . . . 1 . 2 . 1 . . . . . . . 1 2 4 1 Traps | -11 -10 -9 -9 -8 -7 -7 -6 -6 -6 -6 -5 -5 -4 -4 -3 -2 -2 -1 -1 ------- Run | Yrd Mat Mat Min Mat Fac DSF Fac Low Low Dat Pro Fac Fac DSF Res Res Qua Acc Com Traps Triggered 10 | . . . . 1 . . . . . . . 2 1 2 1 . 3 . . Indirectly . | . . . . . . . . . . . . . . . . . . . . Trap Hack Attempts . | . . . . . . . . . . . . . . . . . . . . Triggered . | . . . . . . . . . . . . . . . . . . . . Disarmed . | . . . . . . . . . . . . . . . . . . . . Reprogrammed 1 | . 1 . . . . . . . . . . . . . . . . . . Reused 1 | . 1 . . . . . . . . . . . . . . . . . . Traps Extracted . | . . . . . . . . . . . . . . . . . . . . Installed . | . . . . . . . . . . . . . . . . . . . . Triggered 2 | . 1 . . . . . . . . . . 1 . . . . . . . Machines | -11 -10 -9 -9 -8 -7 -7 -6 -6 -6 -6 -5 -5 -4 -4 -3 -2 -2 -1 -1 ---------- Run | Yrd Mat Mat Min Mat Fac DSF Fac Low Low Dat Pro Fac Fac DSF Res Res Qua Acc Com Machines Disabled 54 | . 3 7 . 1 . 1 . . . . . 12 . . 1 1 14 12 2 Max in Single Turn 4 | . 1 2 . 1 . 1 . . . . . 1 . . 1 1 2 4 1 Garrison Access 5 | . . . . 1 . . . . . . . 1 . . . 2 1 . . Machines Repaired . | . . . . . . . . . . . . . . . . . . . . Machines Dismantled 1 | . . . . . . . . . . . . . . . . . . 1 . Machines Sabotaged . | . . . . . . . . . . . . . . . . . . . . Overloaded Fab Kills . | . . . . . . . . . . . . . . . . . . . . Hacking | -11 -10 -9 -9 -8 -7 -7 -6 -6 -6 -6 -5 -5 -4 -4 -3 -2 -2 -1 -1 --------- Run | Yrd Mat Mat Min Mat Fac DSF Fac Low Low Dat Pro Fac Fac DSF Res Res Qua Acc Com Machines Accessed 52 | . 6 2 . 10 1 . 2 . 1 4 . 11 1 . 2 3 8 . 1 Terminals 28 | . 5 1 . 5 1 . 1 . 1 . . 6 1 . . . 6 . 1 Fabricators 4 | . . . . . . . . . . . . 3 . . . 1 . . . Repair Stations 5 | . . . . 1 . . 1 . . . . 1 . . 1 . 1 . . Recycling Units 4 | . 1 1 . 2 . . . . . . . . . . . . . . . Scanalyzers 2 | . . . . 1 . . . . . . . . . . 1 . . . . Garrison Access 5 | . . . . 1 . . . . . . . 1 . . . 2 1 . . Total Hacks 147 | . 10 5 . 38 1 . 8 . 1 26 . 28 2 . 4 7 14 . 3 Successful 113 | . 7 3 . 28 1 . 7 . 1 26 . 21 1 . 3 2 11 . 2 Failed 34 | . 3 2 . 10 . . 1 . . . . 7 1 . 1 5 3 . 1 Catastrophic 2 | . . . . . . . . . . . . 1 . . . . . . 1 Database Lockouts . | . . . . . . . . . . . . . . . . . . . . Manual 1 | . . . . . . . . . . . . . . . . . 1 . . Terminals 66 | . 9 3 . 18 1 . 4 . 1 . . 14 2 . . . 11 . 3 Fabricators 11 | . . . . . . . . . . . . 9 . . . 2 . . . Repair Stations 14 | . . . . 2 . . 4 . . . . 4 . . 2 . 2 . . Recycling Units 7 | . 1 2 . 4 . . . . . . . . . . . . . . . Scanalyzers 14 | . . . . 12 . . . . . . . . . . 2 . . . . Garrison Access 9 | . . . . 2 . . . . . . . 1 . . . 5 1 . . Terminal Hacks 69 | . 6 1 . 11 1 . 3 . 1 26 . 8 1 . . . 9 . 2 Record 21 | . . . . 2 . . . . 1 11 . 3 . . . . 3 . 1 Part Schematic 12 | . . . . . . . 1 . . 8 . 3 . . . . . . . Robot Schematic 5 | . . . . . . . . . . 4 . . . . . . 1 . . Robot Analysis 1 | . . . . 1 . . . . . . . . . . . . . . . Prototype ID Bank 7 | . 2 . . . . . . . . 3 . 1 . . . . 1 . . Open Door 1 | . . . . . . . . . . . . . . . . . 1 . . Open DSF 2 | . . . . . 1 . . . . . . . 1 . . . . . . Level Access Points 2 | . . . . . . . . . . . . . . . . . 1 . 1 Branch Access Points 2 | . 1 . . . . . 1 . . . . . . . . . . . . Emergency Access Points 1 | . 1 . . . . . . . . . . . . . . . . . . Alert Level 1 | . . . . 1 . . . . . . . . . . . . . . . Locate Traps 2 | . 1 . . 1 . . . . . . . . . . . . . . . Reprogram Traps 1 | . 1 . . . . . . . . . . . . . . . . . . Registered Components 1 | . . . . 1 . . . . . . . . . . . . . . . Registered Prototypes 2 | . . . . 1 . . . . . . . . . . . . 1 . . Zone Layout 8 | . . 1 . 4 . . 1 . . . . 1 . . . . 1 . . Fabricator Hacks 8 | . . . . . . . . . . . . 8 . . . . . . . Load Schematic 4 | . . . . . . . . . . . . 4 . . . . . . . Build 4 | . . . . . . . . . . . . 4 . . . . . . . Repair Station Hacks 12 | . . . . 1 . . 4 . . . . 4 . . 2 . 1 . . Scan Component 8 | . . . . 1 . . 3 . . . . 2 . . 1 . 1 . . Repair 4 | . . . . . . . 1 . . . . 2 . . 1 . . . . Recycling Unit Hacks 6 | . 1 2 . 3 . . . . . . . . . . . . . . . Process 1 | . . 1 . . . . . . . . . . . . . . . . . Report Inventory 2 | . 1 . . 1 . . . . . . . . . . . . . . . Retrieve Matter 1 | . . 1 . . . . . . . . . . . . . . . . . Retrieve Components 2 | . . . . 2 . . . . . . . . . . . . . . . Scanalyzer 13 | . . . . 12 . . . . . . . . . . 1 . . . . Insert Component 7 | . . . . 6 . . . . . . . . . . 1 . . . . Analyze 6 | . . . . 6 . . . . . . . . . . . . . . . Garrison Access Hacks 5 | . . . . 1 . . . . . . . 1 . . . 2 1 . . Seal Access 5 | . . . . 1 . . . . . . . 1 . . . 2 1 . . Unauthorized Hacks . | . . . . . . . . . . . . . . . . . . . . Terminals . | . . . . . . . . . . . . . . . . . . . . Fabricators . | . . . . . . . . . . . . . . . . . . . . Repair Stations . | . . . . . . . . . . . . . . . . . . . . Recycling Units . | . . . . . . . . . . . . . . . . . . . . Scanalyzers . | . . . . . . . . . . . . . . . . . . . . Garrison Access . | . . . . . . . . . . . . . . . . . . . . Data Cores Recovered 3 | . . . . 1 . . . . . . . 2 . . . . . . . Used . | . . . . . . . . . . . . . . . . . . . . Hacking Detections 33 | . 3 1 . 8 . . 2 . . . . 10 1 . . 3 4 . 1 Full Trace Events 6 | . . 1 . 2 . . . . . . . 2 . . . . . . 1 Feedback Events 2 | . . . . . . . . . . . . 1 . . . . . . 1 Corruption 1 | . . . . . . . . . . . . . . . . . . . 1 Hackware Fried 1 | . . . . . . . . . . . . 1 . . . . . . . Feedback Blocked 1 | . . . . . . . . . . . . 1 . . . . . . . Robot Schematics Acquired 9 | . . . . . . . . . . 4 . . . . . . 5 . . Robots Built 8 | . . . . . . . . . . . . 8 . . . . . . . Authchips . | . . . . . . . . . . . . . . . . . . . . Time 380 | . . . . . . . . . . . . 380 . . . . . . . Total Robot Build Rating 40 | . . . . . . . . . . . . 40 . . . . . . . Part Schematics Acquired 24 | . . . . 5 . . 1 . . 8 . 3 . . . . 7 . . Parts Built . | . . . . . . . . . . . . . . . . . . . . Authchips . | . . . . . . . . . . . . . . . . . . . . Time . | . . . . . . . . . . . . . . . . . . . . Total Part Build Rating . | . . . . . . . . . . . . . . . . . . . . Parts Repaired 3 | . . . . . . . 1 . . . . 2 . . . . . . . Time 171 | . . . . . . . 38 . . . . 44 . . 89 . . . . Parts Recycled . | . . . . . . . . . . . . . . . . . . . . Recycled Matter 200 | . . 200 . . . . . . . . . . . . . . . . . Retrieved Matter 200 | . . 200 . . . . . . . . . . . . . . . . . Retrieved Components 19 | . . . . 19 . . . . . . . . . . . . . . . Parts Scanalyzed 6 | . . . . 5 . . . . . . . . . . 1 . . . . Part Schematics Acquired 5 | . . . . 5 . . . . . . . . . . . . . . . Parts Damaged 3 | . . . . 2 . . . . . . . . . . 1 . . . . Bothacking | -11 -10 -9 -9 -8 -7 -7 -6 -6 -6 -6 -5 -5 -4 -4 -3 -2 -2 -1 -1 ------------ Run | Yrd Mat Mat Min Mat Fac DSF Fac Low Low Dat Pro Fac Fac DSF Res Res Qua Acc Com Used RIF Installer . | . . . . . . . . . . . . . . . . . . . . Robots Hacked . | . . . . . . . . . . . . . . . . . . . . Non-combat . | . . . . . . . . . . . . . . . . . . . . Combat . | . . . . . . . . . . . . . . . . . . . . Robot Hacks Applied . | . . . . . . . . . . . . . . . . . . . . Relay Couplers Released . | . . . . . . . . . . . . . . . . . . . . Fabnet Peak Effective % . | . . . . . . . . . . . . . . . . . . . . Robots Rewired 2 | . . . . . . . . 2 . . . . . . . . . . . Allies Hacked 1 | . . . . . . . . . . . . 1 . . . . . . . Hacks Repelled . | . . . . . . . . . . . . . . . . . . . . Allies | -11 -10 -9 -9 -8 -7 -7 -6 -6 -6 -6 -5 -5 -4 -4 -3 -2 -2 -1 -1 -------- Run | Yrd Mat Mat Min Mat Fac DSF Fac Low Low Dat Pro Fac Fac DSF Res Res Qua Acc Com Total Allies 22 | . . . . . . . . 2 . . . 8 . . . . . 6 6 Largest Group 12 | . . . . . . . . 2 2 . . 4 1 1 . . . . 12 Highest-Rated Group 174 | . . . . . . . . 52 52 . . 164 41 41 . . . . 174 Highest-Rated Ally 41 | . . . . . . . . 32 32 . . 41 41 41 . . . . 15 Total Orders . | . . . . . . . . . . . . . . . . . . . . Ally Attacks 186 | . . . . . . . . 6 1 . . 79 . 4 . . . 4 92 Total Damage 4441 | . . . . . . . . 148 46 . . 2733 . 161 . . . 30 1323 Kills 24 | . . . . . . . . 1 . . . 16 . . . . . . 7 Allies Corrupted 1 | . . . . . . . . . . . . 1 . . . . . . . Allies Melted . | . . . . . . . . . . . . . . . . . . . . Intel | -11 -10 -9 -9 -8 -7 -7 -6 -6 -6 -6 -5 -5 -4 -4 -3 -2 -2 -1 -1 ------- Run | Yrd Mat Mat Min Mat Fac DSF Fac Low Low Dat Pro Fac Fac DSF Res Res Qua Acc Com Robot Analysis Total 1 | . . . . 1 . . . . . . . . . . . . . . . Derelict Logs Recovered 3 | . . . . . . . . 3 . . . . . . . . . . . Drone Launches . | . . . . . . . . . . . . . . . . . . . . Drone Recoveries . | . . . . . . . . . . . . . . . . . . . . Exploration | -11 -10 -9 -9 -8 -7 -7 -6 -6 -6 -6 -5 -5 -4 -4 -3 -2 -2 -1 -1 ------------- Run | Yrd Mat Mat Min Mat Fac DSF Fac Low Low Dat Pro Fac Fac DSF Res Res Qua Acc Com Turns Passed 16241 | 89 739 398 299 2588 148 223 626 1177 759 211 798 3383 158 233 504 1269 1596 694 349 Spaces Moved 6669 | 55 387 202 31 584 82 96 250 647 439 131 308 1515 92 92 200 486 618 256 198 Core 198 | 13 . . 29 156 . . . . . . . . . . . . . . . Treads 6471 | 42 387 202 2 428 82 96 250 647 439 131 308 1515 92 92 200 486 618 256 198 Legs . | . . . . . . . . . . . . . . . . . . . . Wheels . | . . . . . . . . . . . . . . . . . . . . Hover . | . . . . . . . . . . . . . . . . . . . . Flight . | . . . . . . . . . . . . . . . . . . . . Fastest Speed 50 | 50 160 160 160 156 156 156 156 156 160 160 160 162 160 160 165 155 158 158 158 Average Speed 194 | 134 160 160 899 387 156 156 158 161 160 160 233 165 160 162 165 160 205 203 164 Slowest Speed 950 | 160 160 160 950 950 156 156 236 240 240 160 240 240 165 165 165 241 241 250 250 Overloaded Moves . | . . . . . . . . . . . . . . . . . . . . Propulsion Burnouts . | . . . . . . . . . . . . . . . . . . . . Robots Hopped . | . . . . . . . . . . . . . . . . . . . . Cave-ins Triggered . | . . . . . . . . . . . . . . . . . . . . Teleports 3 | . . . . . . . . . . . . . . . . . 2 1 . Exploration Rate (%) 37 | 4 69 23 17 64 3 59 8 76 61 75 46 39 2 88 9 12 65 14 12 Regions Visited 19 Branch Regions 7 Pre-discovered Areas 2 | . . . . . . . . 1 . 1 . . . . . . . . . Known Exits Taken 17 | 1 1 1 1 1 1 . 1 1 1 1 1 1 1 . 1 1 1 1 . Unknown Exits Taken . | . . . . . . . . . . . . . . . . . . . . Scrap Searched 9 | . . . . . . . . 3 5 . 1 . . . . . . . . Spaces Dug . | . . . . . . . . . . . . . . . . . . . . Terrain Destroyed 956 | . . 170 32 . . . 30 . 74 . 12 48 . . 7 29 166 344 44 Melee . | . . . . . . . . . . . . . . . . . . . . Projectile 374 | . . . . . . . . . . . 12 48 . . 7 28 120 115 44 AOE 581 | . . 170 32 . . . 30 . 74 . . . . . . . 46 229 . Terrain Rammed . | . . . . . . . . . . . . . . . . . . . . Walls Destroyed . | . . . . . . . . . . . . . . . . . . . . Machines Disabled . | . . . . . . . . . . . . . . . . . . . . Actions | -11 -10 -9 -9 -8 -7 -7 -6 -6 -6 -6 -5 -5 -4 -4 -3 -2 -2 -1 -1 --------- Run | Yrd Mat Mat Min Mat Fac DSF Fac Low Low Dat Pro Fac Fac DSF Res Res Qua Acc Com Total 8660 | 70 460 249 41 763 103 139 378 712 475 132 338 2178 104 125 313 718 782 362 218 Wait 808 | . 35 17 . 26 9 23 39 8 15 . 3 472 . 1 71 48 8 33 . Move 6649 | 54 386 201 30 583 81 95 249 646 438 130 307 1514 91 91 199 485 617 255 197 Hop . | . . . . . . . . . . . . . . . . . . . . Pick Up 206 | 9 10 9 . 36 5 2 5 7 5 . 2 39 5 5 6 26 24 5 6 Fast Attach 1 | . . . . . . 1 . . . . . . . . . . . . . Attach 140 | 7 1 2 . 12 3 . 7 6 3 . 1 22 4 2 7 21 25 11 6 Detach 11 | . . . . . . . . 1 . . . . . . 1 3 4 1 1 Swap 48 | . 2 2 2 6 2 . 6 3 5 2 1 7 . 1 1 3 5 . . Drop 110 | . 2 2 . 22 3 3 3 1 2 . 1 30 4 4 3 7 18 3 2 Fire 670 | . 24 16 9 76 . 15 69 36 7 . 23 94 . 21 25 125 81 44 5 Melee 9 | . . . . 2 . . . 4 . . . . . . . . . 3 . Ram . | . . . . . . . . . . . . . . . . . . . . Kick . | . . . . . . . . . . . . . . . . . . . . Crush 1 | . . . . . . . . . . . . . . . . . . . 1 Escape Stasis . | . . . . . . . . . . . . . . . . . . . . Rewire . | . . . . . . . . . . . . . . . . . . . . Trap . | . . . . . . . . . . . . . . . . . . . . Miscellaneous 7 | . . . . . . . . . . . . . . . . . . 7 . Route ------- -11/Scrapyard -10/Materials (discovered 3 exits: *Mat x2 / *Min) -9/Materials -9/Mines -8/Materials (discovered 3 exits: *Fac x3) -7/Factory -7/DSF -6/Factory (discovered 2 exits: *Low x2) -6/Lower Caves -6/Lower Caves -6/Data Miner -5/Proximity Caves -5/Factory -4/Factory -4/DSF -3/Research -2/Research -2/Quarantine -1/Access -1/Command (discovered 2 exits: *Sur x2) Tau Ceti IV Orbit History --------- Turn | Location | Event 3 | -11/Scrapyard | Identified exit to Materials 3 | -11/Scrapyard | Discovered exit to Materials (range 15) 90 | -11/Scrapyard | Entered Materials 90 | -10/Materials | Evolved 1 slot: Propulsion x1 159 | -10/Materials | Identified exit to Mines 300 | -10/Materials | Build established: Hacker-Mutant 431 | -10/Materials | Identified exit to Materials 431 | -10/Materials | Discovered exit to Materials (range 3) 803 | -10/Materials | Discovered exit to Materials (range 8) 829 | -10/Materials | Entered another Materials area 829 | -9/Materials | Evolved 2 slots: Utility x2 1111 | -9/Materials | Identified exit to Mines 1111 | -9/Materials | Discovered exit to Mines (range 15) 1227 | -9/Materials | Entered Mines 1228 | -9/Mines | Assembled infested the area 1275 | -9/Mines | Destroyed 16 combat bots 1284 | -9/Mines | Lost 3 parts (3n) 1291 | -9/Mines | Met a Derelict bent on vengeance 1475 | -9/Mines | Identified exit to Materials 1475 | -9/Mines | Discovered exit to Materials (range 5) 1526 | -9/Mines | Entered Materials 1526 | -8/Materials | Evolved 2 slots: Power x1, Propulsion x1 3161 | -8/Materials | Identified exit to Factory 3161 | -8/Materials | Discovered exit to Factory (range 11) 3819 | -8/Materials | Build established: Scavenger-Mutant 3902 | -8/Materials | Discovered exit to Factory (range 16) 4105 | -8/Materials | Discovered exit to Factory (range 7) 4114 | -8/Materials | Entered Factory 4114 | -7/Factory | Evolved 2 slots: Utility x1, Weapon x1 4261 | -7/Factory | Identified exit to DSF 4262 | -7/Factory | Entered DSF 4304 | -7/DSF | Additional patrols routed to DSF 4341 | -7/DSF | Identified exit to Factory 4341 | -7/DSF | Discovered exit to Factory (range 12) 4485 | -7/DSF | Entered Factory 4485 | -6/Factory | Evolved 2 slots: Utility x2 4546 | -6/Factory | Repaired Imp. Heat Sink 4575 | -6/Factory | Spotted B-75 Beast 4600 | -6/Factory | Destroyed B-75 Beast 4791 | -6/Factory | Build established: Hacker-Tank 4924 | -6/Factory | Garrison activated, responded to threat 5007 | -6/Factory | Identified exit to Lower Caves 5111 | -6/Factory | Entered Lower Caves 5128 | -6/Lower Caves | Encountered a Warlord checkpoint 5185 | -6/Lower Caves | Identified exit to Lower Caves 5279 | -6/Lower Caves | Learned Factory terminal intel 5308 | -6/Lower Caves | Attracted the attention of an 0b10 outpost 5392 | -6/Lower Caves | Lost 5 parts (2n2u1w) 5394 | -6/Lower Caves | Destroyed 7 combat bots 5648 | -6/Lower Caves | Build established: Scavenger-Tank 6288 | -6/Lower Caves | Entered another Lower Caves area 6288 | -6/Lower Caves | Accompanied by 2 allies 6471 | -6/Lower Caves | Spotted B-75 Beast 6494 | -6/Lower Caves | Destroyed B-75 Beast 6584 | -6/Lower Caves | Encountered a Warlord checkpoint 6767 | -6/Lower Caves | Build established: Hacker-Tank 6913 | -6/Lower Caves | Identified exit to Data Miner 6913 | -6/Lower Caves | Discovered exit to Data Miner (range 10) 7047 | -6/Lower Caves | Entered Data Miner 7047 | -6/Data Miner | Identified exit to Proximity Caves 7047 | -6/Data Miner | Discovered exit to Proximity Caves (range 6) 7078 | -6/Data Miner | Met Data Miner 7131 | -6/Data Miner | Learned location of Section 7 (-2) 7131 | -6/Data Miner | Acquired the access code to Warlord's prototype stash 7156 | -6/Data Miner | Received God Mode back door access code from Data Miner 7258 | -6/Data Miner | Entered Proximity Caves 8016 | -5/Proximity Caves | Identified exit to Factory 8016 | -5/Proximity Caves | Discovered exit to Factory (range 14) 8056 | -5/Proximity Caves | Entered Factory 8056 | -5/Factory | Evolved 2 slots: Utility x1, Weapon x1 8057 | -5/Factory | Loaded intel: 27 terminal locations 8318 | -5/Factory | Hacking Suite fried by hacking feedback 8402 | -5/Factory | Spotted B-75 Beast 8417 | -5/Factory | Destroyed B-75 Beast 8483 | -5/Factory | Build established: Hacker-Gunner 9474 | -5/Factory | Build established: Hacker-Tank 9569 | -5/Factory | Repaired Magnetic Acceleration Cannon 9590 | -5/Factory | Repaired Imp. Heat Sink 10075 | -5/Factory | Fabricated H-66 Slayer? 10297 | -5/Factory | Fabricated H-66 Slayer (x2) 10601 | -5/Factory | P-70 Sage assimilated allied Slayer 6b 10646 | -5/Factory | Found Imp. Powered Armor 10649 | -5/Factory | Found Imp. Powered Armor 10738 | -5/Factory | Fabricated H-66 Slayer? 10800 | -5/Factory | Cargo convoy interrupted 10874 | -5/Factory | Fabricated H-66 Slayer? 11390 | -5/Factory | Identified exit to Factory 11390 | -5/Factory | Discovered exit to Factory (range 9) 11403 | -5/Factory | Lost 3 allies 11439 | -5/Factory | Entered another Factory area 11439 | -4/Factory | Accompanied by 1 ally 11439 | -4/Factory | Evolved 2 slots: Propulsion x2 11597 | -4/Factory | Identified exit to DSF 11597 | -4/Factory | Entered DSF 11597 | -4/DSF | Accompanied by 1 ally 11638 | -4/DSF | Additional patrols routed to DSF 11778 | -4/DSF | Sterilization system engaged 11798 | -4/DSF | Ambient heat levels rising (+10) 11803 | -4/DSF | Identified exit to Research 11803 | -4/DSF | Discovered exit to Research (range 16) 11813 | -4/DSF | Ambient heat levels rising (+10) 11828 | -4/DSF | Ambient heat levels rising (+10) 11830 | -4/DSF | Entered Research 11830 | -3/Research | Evolved 2 slots: Power x1, Utility x1 11989 | -3/Research | Spotted B-86 Titan 12083 | -3/Research | Destroyed B-86 Titan 12306 | -3/Research | Identified exit to Research 12306 | -3/Research | Discovered exit to Research (range 10) 12334 | -3/Research | Entered another Research area 12334 | -2/Research | Evolved 2 slots: Utility x1, Weapon x1 12676 | -2/Research | Destroyed 7 combat bots 12713 | -2/Research | Spotted B-90 Cyclops 12730 | -2/Research | Destroyed B-90 Cyclops 13084 | -2/Research | First assault squad dispatched 13295 | -2/Research | Lost 6 parts (1p2n2u1w) 13315 | -2/Research | Found Prototype Launcher 13316 | -2/Research | Identified Point Singularity Launcher 13319 | -2/Research | Found Point Singularity Launcher 13322 | -2/Research | Found Point Singularity Launcher 13535 | -2/Research | Identified exit to Quarantine 13535 | -2/Research | Discovered exit to Quarantine (range 16) 13603 | -2/Research | Entered Quarantine 13615 | -2/Quarantine | Build established: Hacker-Gunner 13616 | -2/Quarantine | Found Alien Artifact 13617 | -2/Quarantine | Identified Transdimensional Reconstructor 13617 | -2/Quarantine | Warped through subspace 13777 | -2/Quarantine | Found Alien Artifact 13790 | -2/Quarantine | Found Alien Artifact 13791 | -2/Quarantine | Identified Hpw. Transdimensional Reconstructor 13791 | -2/Quarantine | Warped through subspace 13792 | -2/Quarantine | Identified Dimensional Node Initializer 13792 | -2/Quarantine | Initialized slip node 13824 | -2/Quarantine | Found Alien Reactor 13826 | -2/Quarantine | Identified Matter Drive 13989 | -2/Quarantine | Found Dimensional Node Initializer 13990 | -2/Quarantine | Initialized slip node 13994 | -2/Quarantine | Found Dimensional Node Initializer 14011 | -2/Quarantine | Found Hpw. Transdimensional Reconstructor 14015 | -2/Quarantine | Found Hpw. Transdimensional Reconstructor 14209 | -2/Quarantine | Found Alien Artifact 14210 | -2/Quarantine | Identified Core Reset Matrix 14210 | -2/Quarantine | Used Core Reset Matrix 14214 | -2/Quarantine | Detected hypermatrix surge 14214 | -2/Quarantine | Sensed 5 artifacts in vicinity 14412 | -2/Quarantine | Met incapacitated Sigix Warrior 14412 | -2/Quarantine | Lockdown squad dispatched 14426 | -2/Quarantine | Acquired the access code to the Sigix quarantine chamber 14431 | -2/Quarantine | Unlocked Sigix quarantine chamber 14441 | -2/Quarantine | Found Sigix Containment Pod 14490 | -2/Quarantine | Spotted Lightning 14496 | -2/Quarantine | Spotted Lightning 14497 | -2/Quarantine | Spotted Lightning 14510 | -2/Quarantine | Destroyed Lightning 14524 | -2/Quarantine | Destroyed Lightning 14531 | -2/Quarantine | Build established: Hacker-Tank 14538 | -2/Quarantine | Destroyed Lightning 14604 | -2/Quarantine | Scanned by Researcher 14671 | -2/Quarantine | Destroyed 7 combat bots 14746 | -2/Quarantine | Found Core Stripper 14814 | -2/Quarantine | Found Core Cannon 14851 | -2/Quarantine | Identified exit to Access 14941 | -2/Quarantine | Spotted Alpha 7 14974 | -2/Quarantine | Destroyed Alpha 7 15000 | -2/Quarantine | Found Sigix Terminator 15059 | -2/Quarantine | Found Phase Redirector 15115 | -2/Quarantine | Found Sigix Broadsword 15199 | -2/Quarantine | Entered Access 15199 | -1/Access | Evolved 2 slots: Power x1, Weapon x1 15284 | -1/Access | Fired Sigix Terminator 15323 | -1/Access | Destroyed 8 combat bots 15494 | -1/Access | First assault squad dispatched 15576 | -1/Access | Initialized slip node 15650 | -1/Access | Core integrity fell below 50% 15752 | -1/Access | Incoming assault squad redirected 15790 | -1/Access | Warped through subspace 15874 | -1/Access | Spotted B-99 Colossus 15874 | -1/Access | Spotted B-99 Colossus 15886 | -1/Access | Emitted hypermatrix ping 15888 | -1/Access | Identified exit to Command 15888 | -1/Access | Discovered exit to Command (range 3) 15891 | -1/Access | Assembled emerged from beneath the floor 15893 | -1/Access | Entered Command 15893 | -1/Command | Accompanied by 6 allies 15894 | -1/Command | Emitted hypermatrix ping 15899 | -1/Command | Assembled emerged from beneath the floor 15916 | -1/Command | Lost 4 parts (1p1n2w) 15984 | -1/Command | Identified exit to Surface 16010 | -1/Command | Incoming investigation squad redirected 16219 | -1/Command | Spotted B-99 Colossus 16221 | -1/Command | Build established: Generator-Tank 16231 | -1/Command | Lost 6 allies 16232 | -1/Command | Spotted Executioner 16234 | -1/Command | Spotted Striker 16235 | -1/Command | Spotted Executioner 16235 | -1/Command | Spotted Executioner 16237 | -1/Command | Spotted Striker 16238 | -1/Command | Spotted Alpha 7 16238 | -1/Command | Spotted Executioner 16239 | -1/Command | Spotted B-99 Colossus 16240 | -1/Command | Spotted Alpha 7 16242 | *** | Destroyed 0b10! Last Messages --------------- Penetrated by Slug. Hpw. Tractor Beam destroyed. Penetrated by Slug. Slug penetrates Access Shell. Penetrated by Slug. Enh. Nova Cannon destroyed. Slug penetrates Wall. B-99 Colossus activates siege mode. Critical hit (Destroy). Core Cannon destroyed. Penetrated by Slug. Slug penetrates Access Shell. Slug penetrates Wall. Penetrated by Slug. Slug penetrates Access Shell. Penetrated by Slug. Slug penetrates Access Shell. Slug penetrates Wall. Slug penetrates Access Shell. [Achievement: 40k Club] Map ----- +----------------------------------------------------+ | #######+## ???????????????????? | | ########### ???????????????????? | | #?????????????????????????????????? | | #?????????????????????????????????? | | #?????????????????????????????????? | | #?????????????????????????????????? | | ##+########### #?????????????????????????????????? | | ?????????????# #?????????????????????????????????? | | ?????????????# #?????????????????????????????????? | | ?????????????# #???????????????###???####????????? | | ?????????????# #?????????????? ???????? | | ??????????#### ############## ???????? | | ??????????+ ???????? | | ??????????###############";########??????????????? | | ???????????????????????# # #?????????????????????? | | ??????????????????????# ## #?????????????????????? | | ?????????????????????# #?# #?????????????????????? | | ????????????????????# #?## #?????????????????????? | | ??????????????????##"##?#;;#?????????????????????? | | ?????????????????##;##"##%######?????????????????? | | ?????????????????#"BB % #?????????????????? | | ??????????????#?#"# B #?????????????????? | | ??????????? # # ; # EE #?????????????????? | | ?????????? 7 K " " #?????????????????? | | ?????????? ^ ^ KE #?????????????????? | | ?????????? "@ " #?????????????????? | | ?????????? 7 E "" "? #?????????????????? | | ?????????? BB " "?? #?????????????????? | | ??????????? B ?""" ""???#?????????????????? | | ??????????? # # # # ???? ??????????????????????? | | ??????????????#?#?#????? ??????????????????????? | | ???????????????????????? ??????????????????????? | | ????????????????????????;##??????????????????????? | | ????????????????????????;????????????????????????? | | ???????????????????????? ????????????????????????? | | ???????????????????????##????????????????????????? | | ?????????????????????????????????????????????????? | | ?????????????????????????????????????????????????? | | ?????????????????????????????????????????????????? | | ?????????????????????????????????????????????????? | | ?????????????????????????????????????????????????? | | ?????????????????????????????????????????????????? | | ?????????????????????????????????????????????????? | | ?????????????????????????????????????????????????? | | ?????????????????????????????????????????????????? | | ?????????????????????????????????????????????????? | | ?????????????????????????????????????????????????? | | ?????????????????????????????????????????????????? | | ?????????????????????????????????????????????????? | | ?????????????????????????????????????????????????? | +----------------------------------------------------+ Best States ------------- Heat Dissipation 128 Energy Generation 79 Energy Capacity 1110 Matter Stores 600 Matter Capacity 600 Sight Range 16 Terrain Scan Density 10 Base Temperature (-) 200 Armor Coverage 1600 Resistance: KI 60 Resistance: TH 35 Resistance: EX 35 Resistance: EM 35 Resistance: I 35 Resistance: S 35 Resistance: P 35 Core Shielding 20 Propulsion Shielding 66 Utility Shielding 66 Weapon Shielding 66 Point Defense Rating 160 Phase Shifting 5 Evasion (%) 50 Core Analysis 6 Recoil Reduction 6 Offensive Hacking 40 Defensive Hacking 20 Item Schematics ----------------- Lrn. Phase Cannon | -2/Quarantine | Archive Exp. Power Amplifier | -2/Quarantine | Archive Cld. Field Propulsion Drive | -2/Quarantine | Archive Cld. Q-thruster | -2/Quarantine | Archive Coolant Network | -2/Quarantine | Archive Exp. Gyrokinetic Inverter | -2/Quarantine | Archive Point Singularity Launcher | -2/Quarantine | Archive Robot Schematics ------------------ H-88 Terminator | -2/Quarantine | Archive L-61 Swordsman | -2/Quarantine | Archive A-15 Conveyor | -2/Quarantine | Archive G-67 Veteran | -2/Quarantine | Archive Fabricated ------------ H-66 Slayer | x2 | -5/Factory H-66 Slayer | x2 | -5/Factory H-66 Slayer | x2 | -5/Factory H-66 Slayer | x2 | -5/Factory Alien Tech Used ----------------- Transdimensional Reconstructor High-powered Transdimensional Reconstructor Dimensional Node Initializer Matter Drive Core Reset Matrix Core Cannon Sigix Terminator Phase Redirector Sigix Broadsword Achievements -------------- 40k Club Giant Slayer Hard Hitter Preemptive Strike Quick And Dirty Ultimate Loadout Challenges ------------ None Game ------ Seed CooledLegLoader Manual? 0 Play Time 02:35:44 Cumulative 75.9 hours Start 2024.08.25 @ 01:49:00 End 2024.08.25 @ 15:35:50 Sessions 3 Manual Loads 0 Difficulty Explorer Special Mode None Game No. 85 Rogue 77 Adventurer 1 Explorer 7 Win Type 3 Total 6 Types 4/0/0/2/0/0/0/0/0 Lore% 44 Gallery% 53 Achievement% 48 Wizard Run 0 Options --------- Layout 1 ASCII 0 Keyboard 0 Movement Mouse Keybinds 0 Fullscreen 1 Font 24/Smallcaps Map View 50x40 Zoom Use 0% Tactical HUD 0 Map Filters NONE Filters NONE Steam 1 RUN: 8f08769b-49ef-404b-a6a5-9f8507050917